bitfinex-derivatives/quotes_ETHF0:USTF0_20250602
["timestamp","ask_amount","ask_price","bid_price","bid_amount"]
[1748862089477,23.05284,2482.9,2482.8,3.18e-06]
[1748862091390,23.05684,2482.9,2482.8,3.18e-06]
[1748862094688,4.61684,2482.9,2482.8,3.18e-06]
[1748862094888,19.0439,2482.9,2482.8,0.80518318]
[1748862095079,19.84904,2482.9,2482.8,0.80518318]
[1748862095485,0.6039,2482.9,2482.8,0.80518318]
[1748862095677,0.6039,2482.9,2482.8,6.48668318]
[1748862095877,0.6039,2482.9,2482.8,7.75681795]
[1748862096284,0.6039,2482.9,2482.8,6.48668318]
[1748862096475,0.6039,2482.9,2482.8,7.75693235]
[1748862096875,0.6039,2482.9,2482.8,9.52893235]
[1748862097082,1.40904,2482.9,2482.8,9.52893235]
[1748862097277,1.40904,2482.9,2482.8,3.72375235]
[1748862097789,19.85804,2482.9,2482.8,2.45350318]
[1748862097978,1.40904,2482.9,2482.8,3.25868318]
[1748862098179,19.85704,2482.9,2482.8,5.84028097]
[1748862098385,19.85704,2482.9,2482.8,5.03510097]
[1748862098579,19.85804,2482.9,2482.8,5.03510097]
[1748862099890,19.85804,2482.9,2482.8,3.26310097]
[1748862100080,19.85804,2482.9,2482.8,4.06828097]
[1748862100281,19.85804,2482.9,2482.8,2.79748318]
[1748862100483,19.85804,2482.9,2482.8,3.26359757]
[1748862101082,19.85804,2482.9,2482.8,4.06877757]
[1748862102885,19.84804,2482.9,2482.8,4.06877757]
[1748862103086,19.0429,2482.9,2482.8,4.06877757]
[1748862103482,19.84804,2482.9,2482.8,4.06877757]
[1748862104191,19.84804,2482.9,2482.8,5.26763981]
[1748862104385,19.84804,2482.9,2482.8,5.27537277]
[1748862105089,19.84804,2482.9,2482.8,4.07275947]
[1748862107285,19.84804,2482.9,2482.8,2.48003449]
[1748862107486,19.84804,2482.9,2482.8,1.27527947]
[1748862109388,19.84804,2482.9,2482.8,3.18e-06]
[1748862109889,21.18884,2482.9,2482.8,3.18e-06]
[1748862110291,21.18884,2482.9,2482.8,0.07070107]
[1748862112984,21.18984,2482.9,2482.8,0.07070107]
[1748862116088,21.18984,2482.9,2482.8,1.07e-06]
[1748862117186,21.18984,2482.9,2482.6,4.25e-06]
[1748862117187,0.80521,2482.7,2482.6,4.25e-06]
[1748862117386,4.01301,2482.7,2482.6,4.25e-06]
[1748862117587,9.01301,2482.7,2482.6,4.25e-06]
[1748862117784,10.32921,2482.7,2482.6,4.25e-06]
[1748862118190,10.64511942,2482.7,2482.6,4.25e-06]
[1748862119395,12.27951,2482.7,2482.6,4.25e-06]
[1748862119594,10.57051,2482.7,2482.6,4.25e-06]
[1748862119788,29.01251,2482.7,2482.6,4.25e-06]
[1748862120493,4.61701,2482.7,2482.6,4.25e-06]
[1748862120694,23.05901,2482.7,2482.6,4.25e-06]
[1748862121294,23.05901,2482.7,2482.6,2.62891806]
[1748862121494,23.05901,2482.7,2482.6,4.25e-06]
[1748862125099,28.05901,2482.7,2482.6,4.25e-06]
[1748862125505,23.05901,2482.7,2482.6,4.25e-06]
[1748862125704,4.61701,2482.7,2482.6,4.25e-06]
[1748862126101,27.01001,2482.7,2482.6,4.25e-06]
[1748862126296,4.61701,2482.7,2482.6,4.25e-06]
[1748862126496,23.08601,2482.7,2482.6,4.25e-06]
[1748862126696,3.8118,2482.7,2482.6,4.25e-06]
[1748862126901,3.2078,2483.1,2482.6,7.07822108]
[1748862127097,18.476,2483.3,2483.0,0.8051]
[1748862127295,18.476,2483.3,2482.8,3.2078]
[1748862127296,3.2078,2483.4,2483.1,1.948]
[1748862127508,0.80501,2483.3,2483.2,1.2983]
[1748862127703,0.80505,2483.2,2483.1,0.6497]
[1748862128200,2.01264,2483.2,2482.8,5.2533]
[1748862128402,0.80511,2483.0,2482.9,1.85307136]
[1748862128600,0.80511,2483.0,2482.9,1.948]
[1748862128908,19.28811,2483.0,2482.9,3.220688]
[1748862130104,0.80511,2483.0,2482.9,6.82582061]
[1748862130799,0.80511,2483.0,2482.9,6.82570959]
[1748862130998,4.01291,2483.0,2482.9,3.6055]
[1748862133012,4.01291,2483.0,2482.9,0.6727]
[1748862133605,22.50291,2483.0,2482.9,0.6727]
[1748862134306,19.29511,2483.0,2482.9,0.6727]
[1748862134707,19.29511,2483.0,2482.9,1.94570515]
[1748862136097,3.2078,2483.3,2482.9,5.15350515]
[1748862136405,0.80508,2483.1,2483.0,3.42629515]
[1748862136610,0.80508,2483.1,2483.0,2.62120515]
[1748862137406,20.5025,2483.4,2483.0,3.42631515]
[1748862137607,0.80508,2483.1,2483.0,1.3482]
[1748862137807,0.80508,2483.1,2483.0,2.62001083]
[1748862138008,0.80508,2483.1,2483.0,2.62042474]
[1748862138200,5.22016,2483.6,2483.0,2.62042474]
[1748862138401,0.80503,2483.3,2483.2,0.80504]
[1748862138706,0.80503,2483.3,2483.2,2.62022075]
[1748862139008,0.80503,2483.3,2483.2,3.29312075]
[1748862139810,0.80503,2483.3,2483.2,2.0211]
[1748862141010,0.80508,2483.1,2483.0,3.5128]
[1748862141210,0.80508,2483.1,2483.0,5.45737925]
[1748862141803,0.80507,2483.2,2483.0,1.94457925]
[1748862142112,0.80507,2483.2,2483.0,0.6729]
[1748862142313,0.80507,2483.2,2483.1,1.3203]
[1748862142711,4.01284,2483.3,2483.1,1.3203]
[1748862142900,0.80505,2483.2,2483.1,1.3203]
[1748862145714,0.80508,2483.1,2483.0,0.6729]
[1748862145914,1.46438,2483.1,2483.0,1.94398822]
[1748862146115,1.46438,2483.1,2483.0,1.94384174]
[1748862147110,1.46438,2483.1,2483.0,1.27094174]
[1748862149315,3.2078,2483.6,2483.0,1.27094174]
[1748862149514,4.01273,2483.6,2483.5,0.80495]
[1748862149711,21.6938,2483.6,2483.5,2.07589174]
[1748862150718,22.49872,2483.6,2483.5,2.07589174]
[1748862150918,21.6938,2483.6,2483.5,3.43569174]
[1748862151115,3.2078,2483.6,2483.5,3.43569174]
[1748862151319,3.21383318,2484.0,2483.9,0.80482]
[1748862151615,0.00603318,2484.0,2483.9,2.07590727]
[1748862151921,0.00603318,2484.0,2483.9,3.93516934]
[1748862152122,22.5125,2484.3,2483.9,3.93516934]
[1748862152123,3.2078,2484.3,2484.2,0.80472]
[1748862152414,18.5,2484.5,2484.2,5.67856886]
[1748862152607,0.80469,2484.3,2484.2,1.19968159]
[1748862153021,0.80472,2484.2,2484.1,1.19968159]
[1748862153315,0.80479,2484.0,2483.9,1.86391477]
[1748862153520,0.80479,2484.0,2483.9,1.28418355]
[1748862154117,0.80479,2484.0,2483.9,0.00603318]
[1748862155319,2.19979,2484.0,2483.9,0.00603318]
[1748862155516,20.71079,2484.0,2483.9,0.00603318]
[1748862159414,23.91859,2484.0,2483.9,0.00603318]
[1748862161611,5.40759,2484.0,2483.9,0.00603318]
[1748862161814,27.88059,2484.0,2483.9,0.00603318]
[1748862162318,27.87959,2484.0,2483.9,0.00603318]
[1748862162915,2.01215,2483.8,2483.1,1.60166284]
[1748862163221,0.80527,2482.5,2482.4,6.42850462]
[1748862163516,0.80544,2482.0,2481.9,4.02378601]
[1748862163715,2.01338,2482.3,2481.6,6.25208965]
[1748862163716,0.80549,2481.9,2481.6,6.25208965]
[1748862163916,3.2078,2482.2,2481.6,6.25208965]
[1748862163917,18.689,2481.8,2481.6,0.6398]
[1748862164220,0.00603318,2482.0,2481.9,0.80547]
[1748862164719,0.00603318,2482.0,2481.9,5.0]
[1748862164920,0.00603318,2482.0,2481.9,7.61241997]
[1748862165312,0.00603318,2482.0,2481.9,8.82223129]
[1748862165509,0.00603318,2482.0,2481.9,9.62770129]
[1748862165911,0.81147318,2482.0,2481.9,9.26951132]
[1748862166423,0.81147318,2482.0,2481.9,5.07498132]
[1748862166623,0.81147318,2482.0,2481.9,4.26951132]
[1748862167128,5.22058,2483.1,2481.9,9.26951132]
[1748862167329,5.98757,2483.3,2482.6,3.2078]
[1748862167626,2.01257,2483.3,2482.8,0.80515]
[1748862167922,18.695,2483.3,2482.7,0.6391]
[1748862168126,0.80514,2482.9,2482.8,2.02875912]
[1748862168425,0.80514,2482.9,2482.8,1.22359912]
[1748862169024,0.80514,2482.9,2482.8,1.22520486]
[1748862169219,0.80514,2482.9,2482.8,1.86970486]
[1748862173927,0.80514,2482.9,2482.8,2.67488486]
[1748862175729,0.80513,2483.0,2482.9,0.80512]
[1748862175918,19.46713,2483.0,2482.9,4.01292]
[1748862176226,0.00603318,2483.2,2483.1,0.80508]
[1748862176424,18.66503318,2483.2,2483.1,0.80508]
[1748862176623,0.00603318,2483.2,2483.1,0.80508]
[1748862177027,21.8648,2483.4,2483.3,0.80501]
[1748862177217,21.8668,2483.4,2483.3,0.80501]
[1748862177928,22.67178,2483.4,2483.3,0.80501]
[1748862178122,0.80498,2483.4,2483.3,0.80501]
[1748862178322,0.80498,2483.4,2483.3,1.47011]
[1748862179631,19.45897,2483.5,2483.4,0.80498]
[1748862180239,19.45897,2483.5,2483.4,1.49698]
[1748862181135,19.45897,2483.5,2483.4,0.692]
[1748862181331,0.80501,2483.3,2483.2,4.4464]
[1748862182537,0.80501,2483.3,2483.2,5.25145]
[1748862182730,0.80501,2483.3,2483.2,4.4464]
[1748862184639,0.80508,2483.1,2483.0,0.692]
[1748862184834,0.80508,2483.1,2483.0,2.0311]
[1748862185232,0.80508,2483.1,2483.0,2.83621]
[1748862186040,0.80508,2483.1,2483.0,2.0311]
[1748862187844,0.80514,2482.9,2482.8,4.09803318]
[1748862188137,0.80514,2482.9,2482.8,4.092]
[1748862188338,5.80514,2482.9,2482.8,2.42698]
[1748862188644,0.80534,2482.3,2482.2,1.9467]
[1748862188840,19.46134,2482.3,2482.2,1.9467]
[1748862190736,0.80533,2482.4,2482.2,1.9467]
[1748862190945,0.80533,2482.4,2482.3,1.3994]
[1748862191245,0.8054,2482.1,2482.0,8.11603318]
[1748862191443,0.8054,2482.1,2482.0,4.06603318]
[1748862193149,0.8054,2482.1,2482.0,1.22726735]
[1748862194048,19.4624,2482.1,2482.0,1.22726735]
[1748862194248,0.00603318,2482.3,2482.0,2.50916735]
[1748862194449,0.8054,2482.1,2482.0,2.50916735]
[1748862194949,0.8054,2482.1,2482.0,1.28793318]
[1748862195354,0.00603318,2482.3,2482.0,1.28793318]
[1748862195552,19.46237,2482.2,2482.0,2.09334318]
[1748862195748,0.8054,2482.1,2482.0,1.28793318]
[1748862196247,0.8054,2482.1,2482.0,2.09337318]
[1748862196443,0.8054,2482.1,2482.0,1.28793318]
[1748862198451,19.4544,2482.1,2482.0,1.28793318]
[1748862200658,19.4544,2482.1,2482.0,2.09337318]
[1748862200958,0.8054,2482.2,2482.1,0.80539]
[1748862201147,19.4624,2482.2,2482.1,0.80539]
[1748862201348,0.8054,2482.1,2482.0,1.28793318]
[1748862202458,0.8054,2482.1,2482.0,0.00603318]
[1748862202958,19.4744,2482.1,2482.0,0.00603318]
[1748862203652,19.4714,2482.1,2482.0,1.28913318]
[1748862204357,19.4714,2482.1,2482.0,2.09457318]
[1748862204757,18.666,2482.1,2482.0,2.09457318]
[1748862204964,19.4714,2482.1,2482.0,2.09457318]
[1748862207058,0.8054,2482.1,2482.0,2.09457318]
[1748862207262,19.4574,2482.1,2482.0,2.09457318]
[1748862207663,0.00603318,2482.3,2482.0,1.28913318]
[1748862207861,0.00603318,2482.3,2482.2,0.80537]
[1748862208157,0.80515,2482.9,2482.5,2.01319]
[1748862208359,0.80513,2483.0,2482.9,0.80514]
[1748862208561,18.662,2483.0,2482.9,0.80514]
[1748862208956,0.8051,2483.1,2482.7,2.01301]
[1748862208957,0.8051,2483.1,2483.0,0.80511]
[1748862209156,0.00603318,2483.3,2483.1,0.80505]
[1748862209364,0.00603318,2483.3,2483.2,1.3013]
[1748862209668,19.47307318,2483.3,2483.2,1.3013]
[1748862210261,18.66803318,2483.3,2483.0,0.8051]
[1748862210466,0.8051,2483.1,2483.0,0.8051]
[1748862210665,0.8051,2483.1,2483.0,2.1064]
[1748862211168,0.80507,2483.2,2483.1,0.80507]
[1748862212265,18.66803318,2483.3,2483.0,1.3013]
[1748862212266,0.80508,2483.1,2483.0,2.10639]
[1748862212467,0.80508,2483.1,2483.0,2.10638]
[1748862212665,0.80508,2483.1,2483.0,1.3013]
[1748862212965,0.80508,2483.1,2483.0,2.10639]
[1748862213659,0.00603318,2483.3,2483.2,0.80505]
[1748862214065,0.00603318,2483.3,2483.2,4.01285]
[1748862214269,0.00603318,2483.3,2483.2,7.23674957]
[1748862214769,21.8708,2483.8,2483.7,0.80488]
[1748862215464,3.2078,2483.8,2483.7,0.80488]
[1748862215665,21.8708,2483.8,2483.7,0.80488]
[1748862216163,0.80482,2483.9,2483.6,2.81869]
[1748862216365,0.80482,2483.9,2483.7,1.3327]
[1748862216567,19.46282,2483.9,2483.7,1.3327]
[1748862216767,18.658,2483.9,2483.7,2.13758]
[1748862216969,19.46282,2483.9,2483.8,0.6725]
[1748862217170,19.46282,2483.9,2483.8,2.0052]
[1748862217668,0.80488,2483.7,2483.6,2.8395]
[1748862219266,0.80488,2483.7,2483.6,3.64442]
[1748862219667,0.80488,2483.7,2483.6,2.8395]
[1748862219868,0.80488,2483.7,2483.6,0.6811]
[1748862220973,0.80488,2483.7,2483.6,1.48602]
[1748862221874,0.80488,2483.7,2483.6,0.6811]
[1748862222373,23.87787,2483.9,2483.5,9.61738318]
[1748862222666,0.80492,2483.6,2483.5,8.81243318]
[1748862223575,0.80492,2483.6,2483.5,9.61738318]
[1748862223773,2.0527,2483.8,2483.5,9.61738318]
[1748862223973,0.80488,2483.7,2483.5,9.61738318]
[1748862224171,2.0527,2483.8,2483.5,9.61736318]
[1748862224375,0.80492,2483.6,2483.5,9.61736318]
[1748862224571,0.80492,2483.6,2483.5,8.81243318]
[1748862224873,0.80492,2483.6,2483.5,9.61738318]
[1748862225070,0.80492,2483.6,2483.5,8.81243318]
[1748862226180,0.80492,2483.6,2483.5,4.76243318]
[1748862226777,19.43292,2483.6,2483.5,5.56738318]
[1748862227274,18.628,2483.6,2483.5,5.56738318]
[1748862227574,19.43292,2483.6,2483.5,4.76243318]
[1748862228574,0.80492,2483.6,2483.5,4.76243318]
[1748862228778,0.80492,2483.6,2483.5,5.56738318]
[1748862228982,0.80492,2483.6,2483.5,1.34803318]
[1748862230476,0.80492,2483.6,2483.5,2.15298318]
[1748862230683,19.41992,2483.6,2483.5,2.15298318]
[1748862230883,0.8049,2483.7,2483.6,0.80487]
[1748862231084,19.4179,2483.7,2483.6,0.80487]
[1748862231283,0.80487,2483.8,2483.7,0.80485]
[1748862231480,19.41587,2483.8,2483.7,2.17795]
[1748862232277,0.80487,2483.8,2483.7,2.17795]
[1748862233984,0.80487,2483.8,2483.7,2.17798]
[1748862235280,19.40387,2483.8,2483.7,2.17798]
[1748862236279,18.599,2483.8,2483.7,2.17798]
[1748862236484,0.80485,2483.8,2483.7,2.17798]
[1748862236683,19.39884,2483.9,2483.8,0.80483]
[1748862237982,0.80485,2483.8,2483.7,2.17797]
[1748862238275,0.80485,2483.8,2483.7,3.4182417]
[1748862238887,0.80483,2483.9,2483.8,0.80482]
[1748862239085,19.38883,2483.9,2483.8,3.4262917]
[1748862240178,19.38883,2483.9,2483.8,2.6214717]
[1748862242186,19.38883,2483.9,2483.8,3.4263217]
[1748862242393,19.38883,2483.9,2483.8,2.6214717]
[1748862245191,19.38883,2483.9,2483.8,1.3812]
[1748862245391,19.38883,2483.9,2483.8,2.62434124]
[1748862246285,19.38883,2483.9,2483.8,1.24314124]
[1748862246490,20.77303,2483.9,2483.8,1.24314124]
[1748862246892,0.80492,2483.6,2483.5,3.80683318]
[1748862247086,0.80492,2483.6,2483.5,5.05064142]
[1748862247895,2.18912,2483.6,2483.5,5.05064142]
[1748862248090,0.80492,2483.6,2483.5,5.05064142]
[1748862248297,19.36992,2483.6,2483.5,5.05064142]
[1748862248498,19.37192,2483.6,2483.5,5.05064142]
[1748862248691,19.37192,2483.6,2483.5,6.38394142]
[1748862249092,19.37192,2483.6,2483.5,6.38385128]
[1748862249302,19.37192,2483.6,2483.5,7.02805128]
[1748862249989,19.37192,2483.6,2483.5,3.22725128]
[1748862252891,19.37192,2483.6,2483.5,2.58215079]
[1748862253088,19.37192,2483.6,2483.5,1.24885079]
[1748862253290,20.68932,2483.6,2483.5,0.00603318]
[1748862253492,2.01243,2483.5,2483.1,4.55482292]
[1748862253690,4.01285,2483.2,2483.1,3.34356682]
[1748862254096,4.01285,2483.2,2483.1,2.24531682]
[1748862254395,9.12932394,2483.2,2483.1,6.82e-06]
[1748862254603,10.40705,2483.2,2483.1,6.82e-06]
[1748862255899,0.80511,2483.0,2482.9,1e-05]
[1748862256095,0.80527,2482.5,2482.4,1.42329]
[1748862256295,27.24477,2482.5,2482.4,0.48923]
[1748862256504,0.80553,2481.7,2481.6,1.20522292]
[1748862256694,19.43153,2481.7,2481.6,2.44756811]
[1748862256893,19.43153,2481.7,2481.6,1.24234519]
[1748862257601,0.00603318,2481.9,2481.5,2.0115]
[1748862257795,0.00603318,2481.9,2481.8,0.8055]
[1748862258199,0.00603318,2481.9,2481.8,2.836]
[1748862258895,0.00603318,2481.9,2481.8,2.0305]
[1748862259202,0.81150318,2481.9,2481.8,5.5425]
[1748862259393,0.81150318,2481.9,2481.8,6.348]
[1748862259593,0.00603318,2481.9,2481.8,6.348]
[1748862259988,0.80535,2482.3,2481.8,11.348]
[1748862260188,18.646,2482.4,2482.1,0.80538]
[1748862260403,18.646,2482.4,2481.8,5.5425]
[1748862260404,0.80537,2482.2,2482.0,4.81641]
[1748862260897,18.646,2482.4,2482.0,4.81641]
[1748862260898,0.8054,2482.1,2482.0,4.81641]
[1748862261106,0.80538,2482.2,2482.1,0.8054]
[1748862261702,0.81139318,2482.3,2482.2,0.80537]
[1748862262000,0.00603318,2482.3,2482.2,0.80537]
[1748862263500,0.00603318,2482.3,2482.2,5.80537]
[1748862263699,0.4167,2483.3,2482.8,0.80516]
[1748862263700,0.80517,2482.9,2482.8,0.80516]
[1748862263900,18.68,2483.0,2482.7,0.80517]
[1748862263901,0.80519,2482.8,2482.7,0.80517]
[1748862264809,18.68,2483.0,2482.6,0.80522]
[1748862264810,0.80522,2482.7,2482.6,0.80522]
[1748862266013,0.81116318,2483.0,2482.8,0.80515]
[1748862266310,18.677,2482.8,2482.7,0.80521]
[1748862266705,19.48218,2482.8,2482.5,7.22583318]
[1748862266909,19.48218,2482.8,2482.7,0.80521]
[1748862267103,0.80523,2482.7,2482.6,0.80523]
[1748862267300,0.80524,2482.6,2482.5,0.00603318]
[1748862269020,0.80523,2482.7,2482.5,0.81130318]
[1748862269411,0.80523,2482.7,2482.6,0.80524]
[1748862269615,0.80524,2482.6,2482.5,0.00603318]
[1748862272311,0.80524,2482.6,2482.5,0.81130318]
[1748862272616,0.80524,2482.6,2482.5,0.00603318]
[1748862272806,0.80524,2482.6,2482.5,0.81130318]
[1748862273006,0.80524,2482.6,2482.5,0.00603318]
[1748862273612,0.80524,2482.6,2482.5,0.81130318]
[1748862273814,0.80524,2482.6,2482.5,0.00603318]
[1748862274016,9.01304,2482.6,2482.5,0.00603318]
[1748862274523,4.01304,2482.6,2482.5,0.00603318]
[1748862275007,3.2078,2482.6,2482.5,0.81130318]
[1748862275207,21.8878,2482.6,2482.5,0.81130318]
[1748862275816,22.69304,2482.6,2482.5,0.81130318]
[1748862276011,22.69304,2482.6,2482.5,0.00603318]
[1748862276213,22.69304,2482.6,2482.5,0.81130318]
[1748862276420,22.69304,2482.6,2482.5,2.07430318]
[1748862277315,22.69304,2482.6,2482.5,0.00603318]
[1748862283230,4.01304,2482.6,2482.5,0.00603318]
[1748862283730,22.66604,2482.6,2482.5,2.61323318]
[1748862285531,19.45324,2482.6,2482.5,2.61323318]
[1748862287533,19.45324,2482.6,2482.5,3.858625]
[1748862287734,19.45324,2482.6,2482.5,3.85862541]
[1748862288130,19.45324,2482.6,2482.5,2.61323318]
[1748862288433,22.66104,2482.6,2482.5,0.00603318]
[1748862288633,24.02254,2482.6,2482.5,1.25165041]
[1748862288831,24.02254,2482.6,2482.5,0.00603318]
[1748862290927,0.8054,2482.1,2482.0,2.01100349]
[1748862291128,0.8054,2482.1,2482.0,4.40529656]
[1748862291436,0.80539,2482.2,2482.1,0.8054]
[1748862291634,0.80539,2482.2,2482.1,2.54243307]
[1748862291840,18.646,2482.2,2482.1,3.34781307]
[1748862292031,19.45137,2482.2,2482.1,3.34781307]
[1748862292228,19.45137,2482.2,2482.1,3.34772845]
[1748862292538,19.45137,2482.2,2482.1,2.54234845]
[1748862293041,19.45137,2482.2,2482.1,3.34774845]
[1748862293635,19.45137,2482.2,2482.1,2.54234845]
[1748862293937,0.80532,2482.4,2482.3,0.80534]
[1748862294133,0.80528,2482.5,2482.3,2.45167479]
[1748862294431,0.80528,2482.5,2482.4,2.20158]
[1748862294637,4.01305,2482.6,2482.5,0.80527]
[1748862294834,3.2078,2482.6,2482.5,4.11831845]
[1748862295035,3.2078,2482.6,2482.5,5.32424479]
[1748862295331,3.2078,2482.6,2482.5,2.87257]
[1748862295530,0.80524,2482.6,2482.5,2.87257]
[1748862296435,0.80524,2482.6,2482.5,5.32480041]
[1748862298146,19.45523,2482.7,2482.5,5.32480041]
[1748862298334,19.45523,2482.7,2482.6,1.87855325]
[1748862298936,19.45523,2482.7,2482.6,2.68379325]
[1748862299334,0.80523,2482.7,2482.6,2.68379325]
[1748862299932,0.80523,2482.7,2482.6,1.87855325]
[1748862300337,0.80523,2482.7,2482.6,1.87856887]
[1748862300638,0.80523,2482.7,2482.6,3.98920887]
[1748862302842,0.80523,2482.7,2482.6,3.98900542]
[1748862303640,1.40913,2482.7,2482.6,3.98900542]
[1748862303847,0.6039,2482.7,2482.6,8.98900542]
[1748862304141,0.00603318,2483.0,2482.9,0.80514]
[1748862304444,4.069,2483.7,2483.2,2.01259]
[1748862304445,18.634,2483.7,2483.2,2.01259]
[1748862304642,0.80498,2483.4,2483.3,2.0747]
[1748862304836,4.01278,2483.4,2483.3,2.0747]
[1748862305140,4.01278,2483.4,2483.3,1.24586542]
[1748862305343,0.80505,2483.2,2483.1,0.00603318]
[1748862306444,2.07565,2483.2,2483.1,0.00603318]
[1748862306747,0.80518,2482.8,2482.7,1.2635]
[1748862306943,19.46218,2482.8,2482.7,2.56551889]
[1748862307337,19.46218,2482.8,2482.7,1.30201889]
[1748862307545,0.80521,2482.7,2482.6,2.5776]
[1748862307840,0.80521,2482.7,2482.6,3.87955968]
[1748862308042,7.07581,2482.7,2482.6,1.97993318]
[1748862309440,2.07581,2482.7,2482.6,1.97993318]
[1748862309944,0.80527,2482.5,2482.4,0.00603318]
[1748862310243,4.01307,2482.5,2482.4,0.00603318]
[1748862315948,4.69307,2482.5,2482.4,0.00603318]
[1748862318550,5.97197,2482.5,2482.4,0.00603318]
[1748862319150,10.97197,2482.5,2482.4,0.00603318]
[1748862319353,5.97197,2482.5,2482.4,0.00603318]
[1748862320441,2.92326996,2482.5,2482.4,0.00603318]
[1748862320651,11.13106996,2482.5,2482.4,0.00603318]
[1748862320856,11.13106996,2482.5,2482.4,3.18e-06]
[1748862328564,7.92326996,2482.5,2482.4,3.18e-06]
[1748862328762,11.13106996,2482.5,2482.4,3.18e-06]
[1748862329061,7.92326996,2482.5,2482.4,3.18e-06]
[1748862329254,11.13106996,2482.5,2482.4,3.18e-06]
[1748862333562,4.01307,2482.5,2482.4,3.18e-06]
[1748862333862,22.63407,2482.5,2482.4,3.18e-06]
[1748862334455,26.70107,2482.5,2482.4,3.18e-06]
[1748862341270,0.80557,2481.6,2481.5,1.20488959]
[1748862341462,4.01337,2481.6,2481.5,2.60887624]
[1748862341661,22.62437,2481.6,2481.5,2.60887624]
[1748862342369,22.62437,2481.6,2481.5,2.60892562]
[1748862342670,22.62437,2481.6,2481.5,3.93512562]
[1748862344264,0.80555,2481.7,2481.5,8.93512562]
[1748862344466,0.00603318,2481.8,2481.6,2.62862562]
[1748862344672,0.8055,2481.8,2481.7,2.62862562]
[1748862345469,0.8055,2481.8,2481.7,0.45707]
[1748862347672,0.80557,2481.6,2481.5,1.3065]
[1748862347874,8.04437,2481.6,2481.5,1.3065]
[1748862348872,8.04437,2481.6,2481.5,2.6349]
[1748862349369,3.2078,2481.6,2481.5,8.4405]
[1748862349670,0.80553,2481.7,2481.5,10.1424944]
[1748862349865,0.80553,2481.7,2481.6,1.3284]
[1748862350270,0.80553,2481.7,2481.6,8.8366111]
[1748862350583,18.649,2481.8,2481.6,7.62996871]
[1748862350765,0.00603318,2482.0,2481.7,3.8369108]
[1748862351072,3.2078,2482.1,2481.8,2.62996871]
[1748862351266,3.2078,2482.1,2481.9,2.62996871]
[1748862351480,4.01322,2482.1,2482.0,1.3284]
[1748862351666,4.01322,2482.1,2482.0,3.28196871]
[1748862351976,4.01322,2482.1,2482.0,8.28196871]
[1748862352369,4.01322,2482.1,2482.0,3.28196871]
[1748862352773,4.01322,2482.1,2482.0,1.9804]
[1748862356177,22.66822,2482.1,2482.0,1.9804]
[1748862360279,0.8055,2481.8,2481.7,0.6715]
[1748862360483,4.0133,2481.8,2481.7,0.6715]
[1748862361580,22.6523,2481.8,2481.7,2.0367]
[1748862364176,22.6523,2481.8,2481.7,1.3652]
[1748862364375,0.80553,2481.7,2481.6,0.6568]
[1748862365284,0.80553,2481.7,2481.6,1.94845483]
[1748862365978,0.80553,2481.7,2481.6,1.94843671]
[1748862366183,0.80553,2481.7,2481.6,3.25723671]
[1748862367682,4.83653,2481.7,2481.6,3.25723671]
[1748862367984,4.83653,2481.7,2481.6,1.3088]
[1748862368284,0.8056,2481.5,2481.4,0.6761]
[1748862368474,4.0134,2481.5,2481.4,3.26975718]
[1748862368878,4.0134,2481.5,2481.4,1.9781]
[1748862369077,4.0134,2481.5,2481.4,0.6761]
[1748862369873,4.0134,2481.5,2481.4,1.9385]
[1748862369874,22.6654,2481.5,2481.4,1.9385]
[1748862370078,0.8056,2481.5,2481.4,1.9385]
[1748862370279,0.8056,2481.5,2481.4,8.2282422]
[1748862370280,19.4726,2481.5,2481.4,8.2282422]
[1748862371479,19.4726,2481.5,2481.4,3.2282422]
[1748862372183,19.4726,2481.5,2481.4,1.9385]
[1748862372489,0.8056,2481.5,2481.4,3.2280963]
[1748862372688,0.8056,2481.5,2481.4,4.43418859]
[1748862374981,0.8056,2481.5,2481.4,4.83675771]
[1748862375389,0.8056,2481.5,2481.4,3.2280963]
[1748862376291,0.8056,2481.5,2481.4,3.22812002]
[1748862378692,0.8056,2481.5,2481.4,4.83678143]
[1748862378893,0.80559,2481.6,2481.5,0.8056]
[1748862379082,19.43859,2481.6,2481.5,4.69903079]
[1748862379279,19.43859,2481.6,2481.5,3.89343079]
[1748862379788,19.43859,2481.6,2481.5,2.60381077]
[1748862379986,19.43859,2481.6,2481.5,4.69952995]
[1748862380289,5.22147,2482.0,2481.6,0.80557]
[1748862380485,9.28821318,2482.3,2481.7,3.3039653]
[1748862380691,0.80545,2482.0,2481.9,0.80545]
[1748862380893,0.80545,2482.0,2481.9,2.20265]
[1748862381090,19.43545,2482.0,2481.9,3.4927853]
[1748862381688,19.43945,2482.0,2481.9,2.6873353]
[1748862384289,19.43945,2482.0,2481.9,2.68720954]
[1748862384793,19.43945,2482.0,2481.9,1.29000954]
[1748862384996,20.75955,2482.0,2481.9,1.29000954]
[1748862386697,0.80547,2481.9,2481.8,0.6876]
[1748862386899,0.80547,2481.9,2481.8,1.97749145]
[1748862387098,19.43047,2481.9,2481.8,1.97749145]
[1748862387303,18.625,2481.9,2481.8,3.36839145]
[1748862387598,19.43047,2481.9,2481.8,3.36839145]
[1748862387991,18.625,2481.9,2481.8,3.36839145]
[1748862388192,18.625,2481.9,2481.8,3.36835424]
[1748862388392,19.43047,2481.9,2481.8,3.36835424]
[1748862390493,22.63827,2481.9,2481.8,1.28985424]
[1748862391303,27.33667,2481.9,2481.8,1.28985424]
[1748862391506,0.80557,2481.6,2481.5,1.20636372]
[1748862391804,4.01337,2481.6,2481.5,1.28999372]
[1748862391996,0.8056,2481.5,2481.4,2.1272]
[1748862392303,2.7263,2481.5,2481.4,3.41726592]
[1748862392498,2.7263,2481.5,2481.4,2.60365592]
[1748862392691,11.7873,2481.5,2481.4,1.31359]
[1748862393408,6.7873,2481.5,2481.4,1.31359]
[1748862394107,0.80563,2481.4,2481.3,0.00603318]
[1748862394306,2.08133,2481.4,2481.3,0.00603318]
[1748862395011,24.76733,2481.4,2481.3,0.00603318]
[1748862397404,24.76733,2481.4,2481.3,3.18e-06]